[Event "*** Titled Tuesday Blitz"]
[Site "Chess.com"]
[Date "2020.04.28"]
[Round "1"]
[White "Vincent_Vega95"]
[Black "abubakrtagelsir"]
[Result "1-0"]
[WhiteElo "2703"]
[BlackElo "2360"]
[TimeControl "180+1"]
[EndTime "10:07:26 PDT"]
[Termination "Vincent_Vega95 won by checkmate"]

1. d4 {[%clk 0:02:56.2]} 1... Nf6 {[%clk 0:02:56.6]} 2. c4 {[%clk 0:02:56.6]}
2... g6 {[%clk 0:02:55.9]} 3. Nc3 {[%clk 0:02:56.9]} 3... Bg7 {[%clk 0:02:55.6]}
4. e4 {[%clk 0:02:57]} 4... d6 {[%clk 0:02:55]} 5. Nf3 {[%clk 0:02:57.2]} 5...
O-O {[%clk 0:02:54]} 6. Be2 {[%clk 0:02:57.7]} 6... Na6 {[%clk 0:02:48.8]} 7.
Bf4 {[%clk 0:02:50.8]} 7... Bg4 {[%clk 0:02:46.2]} 8. O-O {[%clk 0:02:47.3]}
8... Nd7 {[%clk 0:02:44.1]} 9. Bg5 {[%clk 0:02:29.7]} 9... Qe8 {[%clk
0:02:37.5]} 10. Nd5 {[%clk 0:02:24.3]} 10... e6 {[%clk 0:02:24.7]} 11. Ne3
{[%clk 0:02:23.9]} 11... Bxf3 {[%clk 0:02:21.5]} 12. Bxf3 {[%clk 0:02:24.8]}
12... f6 {[%clk 0:02:14.2]} 13. Bh4 {[%clk 0:02:21.4]} 13... e5 {[%clk
0:02:11.2]} 14. d5 {[%clk 0:02:08.2]} 14... Qf7 {[%clk 0:01:54]} 15. Bg4 {[%clk
0:02:04.4]} 15... Kh8 {[%clk 0:01:50.4]} 16. Rb1 {[%clk 0:01:57.2]} 16... Ndc5
{[%clk 0:01:44.9]} 17. Qf3 {[%clk 0:01:44.5]} 17... Nd3 {[%clk 0:01:22.1]} 18.
a3 {[%clk 0:01:33.5]} 18... g5 {[%clk 0:01:19.5]} 19. Bg3 {[%clk 0:01:31.4]}
19... Nf4 {[%clk 0:01:19.6]} 20. h3 {[%clk 0:01:24.9]} 20... h5 {[%clk
0:01:05.1]} 21. Be6 {[%clk 0:01:23]} 21... Nxe6 {[%clk 0:00:57.4]} 22. dxe6
{[%clk 0:01:23]} 22... Qxe6 {[%clk 0:00:56.4]} 23. Qxh5+ {[%clk 0:01:22.8]}
23... Kg8 {[%clk 0:00:56.2]} 24. b4 {[%clk 0:01:23.1]} 24... Qe8 {[%clk
0:00:48.9]} 25. Qg4 {[%clk 0:01:21.2]} 25... Kf7 {[%clk 0:00:38.8]} 26. Nf5
{[%clk 0:01:17.6]} 26... Rh8 {[%clk 0:00:37.6]} 27. Rfd1 {[%clk 0:01:08.9]}
27... Rd8 {[%clk 0:00:35.5]} 28. h4 {[%clk 0:00:58.7]} 28... Bh6 {[%clk
0:00:20.5]} 29. c5 {[%clk 0:00:51]} 29... dxc5 {[%clk 0:00:08.9]} 30. Rxd8
{[%clk 0:00:49.9]} 30... Qxd8 {[%clk 0:00:07.5]} 31. Rd1 {[%clk 0:00:50.2]}
31... Qe8 {[%clk 0:00:05.7]} 32. Nxh6+ {[%clk 0:00:37.8]} 32... Rxh6 {[%clk
0:00:05.5]} 33. hxg5 {[%clk 0:00:36.9]} 33... Rg6 {[%clk 0:00:05.5]} 34. Rd7+
{[%clk 0:00:31.1]} 34... Kg8 {[%clk 0:00:05.5]} 35. Qd1 {[%clk 0:00:31.3]} 35...
Qe6 {[%clk 0:00:02.7]} 36. Rd8+ {[%clk 0:00:25.7]} 36... Kh7 {[%clk 0:00:02.7]}
37. Qh5+ {[%clk 0:00:26.1]} 37... Kg7 {[%clk 0:00:02.3]} 38. Qh8+ {[%clk
0:00:26]} 38... Kf7 {[%clk 0:00:02.6]} 39. Qf8# {[%clk 0:00:25.3]} 1-0

[Event "*** Titled Tuesday Blitz"]
[Site "Chess.com"]
[Date "2020.04.28"]
[Round "1"]
[White "AthanasiusLefebvre"]
[Black "bazar-wokzal"]
[Result "0-1"]
[WhiteElo "2052"]
[BlackElo "2505"]
[TimeControl "180+1"]
[EndTime "10:07:26 PDT"]
[Termination "bazar-wokzal won on time"]

1. g3 {[%clk 0:02:33.2]} 1... e5 {[%clk 0:02:56.6]} 2. d3 {[%clk 0:02:30.9]}
2... d5 {[%clk 0:02:56.2]} 3. Bg2 {[%clk 0:02:26.4]} 3... Nc6 {[%clk 0:02:55.6]}
4. Nf3 {[%clk 0:02:21.9]} 4... Bg4 {[%clk 0:02:51.4]} 5. O-O {[%clk 0:02:18.3]}
5... Nf6 {[%clk 0:02:47.8]} 6. h3 {[%clk 0:01:54.7]} 6... Bh5 {[%clk 0:02:40.5]}
7. g4 {[%clk 0:01:53.2]} 7... Bg6 {[%clk 0:02:39.8]} 8. Nh4 {[%clk 0:01:53.6]}
8... Bc5 {[%clk 0:02:38.2]} 9. Nxg6 {[%clk 0:01:52.3]} 9... hxg6 {[%clk
0:02:37.7]} 10. e4 {[%clk 0:01:48.4]} 10... Qd6 {[%clk 0:02:25.5]} 11. g5 {[%clk
0:01:41]} 11... Nh5 {[%clk 0:02:24.8]} 12. exd5 {[%clk 0:01:33.5]} 12... Nd4
{[%clk 0:02:24.8]} 13. c3 {[%clk 0:01:29.9]} 13... Nf5 {[%clk 0:02:24.4]} 14. d4
{[%clk 0:01:29.5]} 14... exd4 {[%clk 0:02:24]} 15. Re1+ {[%clk 0:01:28.3]} 15...
Kf8 {[%clk 0:02:16.3]} 16. cxd4 {[%clk 0:01:24]} 16... Bxd4 {[%clk 0:02:15.3]}
17. Nc3 {[%clk 0:01:19.9]} 17... Nf4 {[%clk 0:02:06.6]} 18. Ne4 {[%clk
0:01:07.3]} 18... Qe5 {[%clk 0:01:49.4]} 19. b3 {[%clk 0:00:57.8]} 19... Nxg2
{[%clk 0:01:41.4]} 20. Ba3+ {[%clk 0:00:56.4]} 20... Kg8 {[%clk 0:01:29.9]} 21.
Kxg2 {[%clk 0:00:41.8]} 21... Bxa1 {[%clk 0:01:22.3]} 22. Nf6+ {[%clk 0:00:41]}
22... gxf6 {[%clk 0:01:21.8]} 23. Rxe5 {[%clk 0:00:40.7]} 23... Bxe5 {[%clk
0:01:21.6]} 24. gxf6 {[%clk 0:00:36.3]} 24... Bxf6 {[%clk 0:01:20.9]} 25. Qc2
{[%clk 0:00:35.9]} 25... Be5 {[%clk 0:01:10.5]} 26. Qe4 {[%clk 0:00:33.1]} 26...
Bd6 {[%clk 0:01:03.7]} 27. Bb2 {[%clk 0:00:32.8]} 27... Rh4 {[%clk 0:01:03.3]}
28. Qd3 {[%clk 0:00:28.3]} 28... Re8 {[%clk 0:01:00.3]} 29. Qb5 {[%clk
0:00:27.6]} 29... Rhe4 {[%clk 0:00:48.8]} 30. Qxb7 {[%clk 0:00:25.5]} 30... Re2
{[%clk 0:00:47.7]} 31. Bf6 {[%clk 0:00:24.8]} 31... Ne3+ {[%clk 0:00:44]} 32.
Kf3 {[%clk 0:00:21.9]} 32... Nd1 {[%clk 0:00:43.7]} 33. Qxa7 {[%clk 0:00:20.6]}
33... Rxf2+ {[%clk 0:00:41.1]} 34. Qxf2 {[%clk 0:00:20.5]} 34... Nxf2 {[%clk
0:00:40.4]} 35. Kxf2 {[%clk 0:00:21.4]} 35... Ra8 {[%clk 0:00:39.6]} 36. a4
{[%clk 0:00:20.5]} 36... Rb8 {[%clk 0:00:39.5]} 37. a5 {[%clk 0:00:19.4]} 37...
Rxb3 {[%clk 0:00:39.2]} 38. Bd4 {[%clk 0:00:18.9]} 38... Rxh3 {[%clk 0:00:38.1]}
39. a6 {[%clk 0:00:18.6]} 39... Ra3 {[%clk 0:00:37.1]} 40. a7 {[%clk 0:00:18.1]}
40... f5 {[%clk 0:00:35.7]} 41. Ke2 {[%clk 0:00:17.9]} 41... g5 {[%clk
0:00:34.6]} 42. Kd2 {[%clk 0:00:18]} 42... g4 {[%clk 0:00:34.2]} 43. Kc2 {[%clk
0:00:18.2]} 43... f4 {[%clk 0:00:31.7]} 44. Kb2 {[%clk 0:00:18.2]} 44... g3
{[%clk 0:00:30.3]} 0-1

[Event "*** Titled Tuesday Blitz"]
[Site "Chess.com"]
[Date "2020.04.28"]
[Round "1"]
[White "Anna_ChessMate"]
[Black "GodDMuhammad"]
[Result "1-0"]
[WhiteElo "2537"]
[BlackElo "2191"]
[TimeControl "180+1"]
[EndTime "10:07:27 PDT"]
[Termination "Anna_ChessMate won by resignation"]

1. d4 {[%clk 0:02:49.4]} 1... Nf6 {[%clk 0:02:59.1]} 2. c4 {[%clk 0:02:49.4]}
2... e6 {[%clk 0:02:58.8]} 3. Nf3 {[%clk 0:02:30.5]} 3... d5 {[%clk 0:02:58.5]}
4. Nc3 {[%clk 0:02:29.7]} 4... Be7 {[%clk 0:02:48.6]} 5. Bf4 {[%clk 0:02:28.5]}
5... O-O {[%clk 0:02:47.8]} 6. e3 {[%clk 0:02:29]} 6... b6 {[%clk 0:02:47.2]} 7.
Rc1 {[%clk 0:02:27.7]} 7... Bb7 {[%clk 0:02:46.7]} 8. h3 {[%clk 0:02:28]} 8...
Nbd7 {[%clk 0:02:45.2]} 9. cxd5 {[%clk 0:02:28.1]} 9... exd5 {[%clk 0:02:44.4]}
10. Bd3 {[%clk 0:02:28.1]} 10... c5 {[%clk 0:02:43.6]} 11. O-O {[%clk
0:02:28.5]} 11... Rc8 {[%clk 0:02:42.6]} 12. dxc5 {[%clk 0:02:27.7]} 12... Nxc5
{[%clk 0:02:41.8]} 13. Bb1 {[%clk 0:02:28.1]} 13... Nce4 {[%clk 0:02:36.4]} 14.
Qa4 {[%clk 0:02:21.1]} 14... a6 {[%clk 0:02:33.7]} 15. Rfd1 {[%clk 0:02:19.3]}
15... b5 {[%clk 0:02:33.7]} 16. Qb3 {[%clk 0:02:16.3]} 16... Nc5 {[%clk
0:02:28.5]} 17. Qc2 {[%clk 0:02:16.1]} 17... Ne6 {[%clk 0:02:26.8]} 18. Be5
{[%clk 0:02:06.5]} 18... g6 {[%clk 0:02:26]} 19. Qd2 {[%clk 0:02:00.7]} 19...
Ne4 {[%clk 0:01:59.5]} 20. Nxe4 {[%clk 0:01:55.6]} 20... dxe4 {[%clk 0:01:59.7]}
21. Rxc8 {[%clk 0:01:55]} 21... Qxc8 {[%clk 0:01:51.6]} 22. Nd4 {[%clk
0:01:55.2]} 22... Rd8 {[%clk 0:01:41.2]} 23. a3 {[%clk 0:01:45]} 23... f6 {[%clk
0:01:33.5]} 24. Ba2 {[%clk 0:01:41.4]} 24... Bd5 {[%clk 0:01:02.9]} 25. Nxe6
{[%clk 0:01:31.4]} 25... Bxe6 {[%clk 0:01:02.3]} 26. Bxe6+ {[%clk 0:01:22.7]}
26... Qxe6 {[%clk 0:01:01.9]} 27. Bd4 {[%clk 0:01:23.6]} 27... Bc5 {[%clk
0:00:57.7]} 28. Qa5 {[%clk 0:01:24]} 28... Rd7 {[%clk 0:00:51.5]} 29. a4 {[%clk
0:01:10.6]} 29... Bxd4 {[%clk 0:00:46]} 30. exd4 {[%clk 0:01:11.5]} 30... bxa4
{[%clk 0:00:45.5]} 31. d5 {[%clk 0:01:11.6]} 31... Qf7 {[%clk 0:00:39.2]} 32. d6
{[%clk 0:01:10.1]} 32... Qb3 {[%clk 0:00:29.1]} 33. Rd2 {[%clk 0:01:09.1]} 33...
f5 {[%clk 0:00:21.8]} 34. Qe5 {[%clk 0:01:06.6]} 34... Kf7 {[%clk 0:00:19.2]}
35. Qh8 {[%clk 0:01:05.8]} 35... Qb5 {[%clk 0:00:13.2]} 36. Qxh7+ {[%clk
0:01:05.2]} 36... Kf6 {[%clk 0:00:13.3]} 37. Qh8+ {[%clk 0:01:03.2]} 37... Kf7
{[%clk 0:00:13.6]} 38. Qc8 {[%clk 0:00:59.2]} 38... Ke6 {[%clk 0:00:13.5]} 39.
Qe8+ {[%clk 0:00:58]} 39... Kf6 {[%clk 0:00:13.6]} 40. g4 {[%clk 0:00:53.4]}
40... a3 {[%clk 0:00:11.2]} 41. bxa3 {[%clk 0:00:52.8]} 41... a5 {[%clk
0:00:11]} 42. h4 {[%clk 0:00:50.5]} 42... fxg4 {[%clk 0:00:10.6]} 43. Qxe4
{[%clk 0:00:50.6]} 43... Qf5 {[%clk 0:00:09.9]} 44. Qe8 {[%clk 0:00:46.5]} 44...
Qb1+ {[%clk 0:00:08.2]} 45. Kh2 {[%clk 0:00:44.3]} 45... Qb7 {[%clk 0:00:08.4]}
46. Re2 {[%clk 0:00:38.6]} 46... Rxd6 {[%clk 0:00:06.3]} 47. Qe5+ {[%clk
0:00:38.8]} 47... Kf7 {[%clk 0:00:06.3]} 48. Qxd6 {[%clk 0:00:38.6]} 1-0

[Event "*** Titled Tuesday Blitz"]
[Site "Chess.com"]
[Date "2020.04.28"]
[Round "1"]
[White "Konek-Gorbunok"]
[Black "viktorskliarov"]
[Result "0-1"]
[WhiteElo "2322"]
[BlackElo "2645"]
[TimeControl "180+1"]
[EndTime "10:07:28 PDT"]
[Termination "viktorskliarov won on time"]

1. d4 {[%clk 0:02:57.2]} 1... Nf6 {[%clk 0:02:57.9]} 2. Nf3 {[%clk 0:02:57.4]}
2... g6 {[%clk 0:02:57.4]} 3. c4 {[%clk 0:02:57.4]} 3... Bg7 {[%clk 0:02:57.6]}
4. Nc3 {[%clk 0:02:57.9]} 4... O-O {[%clk 0:02:58]} 5. e4 {[%clk 0:02:58.3]}
5... d6 {[%clk 0:02:56.9]} 6. Be2 {[%clk 0:02:58.8]} 6... Bg4 {[%clk 0:02:56.9]}
7. O-O {[%clk 0:02:58.2]} 7... Nc6 {[%clk 0:02:56.5]} 8. Be3 {[%clk 0:02:57]}
8... Bxf3 {[%clk 0:02:50.6]} 9. Bxf3 {[%clk 0:02:56.2]} 9... e5 {[%clk
0:02:51.2]} 10. d5 {[%clk 0:02:56.4]} 10... Ne7 {[%clk 0:02:40.6]} 11. c5 {[%clk
0:02:54.8]} 11... Nd7 {[%clk 0:02:34.8]} 12. cxd6 {[%clk 0:02:52.9]} 12... cxd6
{[%clk 0:02:34.6]} 13. Rc1 {[%clk 0:02:46.8]} 13... a6 {[%clk 0:02:33.1]} 14. b4
{[%clk 0:02:40.3]} 14... f5 {[%clk 0:02:28.6]} 15. Qb3 {[%clk 0:02:15.2]} 15...
f4 {[%clk 0:02:18]} 16. Bd2 {[%clk 0:02:14.9]} 16... h5 {[%clk 0:02:16.3]} 17.
a4 {[%clk 0:02:06.6]} 17... Nf6 {[%clk 0:01:51.8]} 18. Be2 {[%clk 0:01:47.2]}
18... g5 {[%clk 0:01:46.8]} 19. f3 {[%clk 0:01:47.4]} 19... g4 {[%clk
0:01:36.2]} 20. a5 {[%clk 0:01:46.7]} 20... Ng6 {[%clk 0:01:08.2]} 21. Na4
{[%clk 0:01:43.6]} 21... Rf7 {[%clk 0:01:07.3]} 22. Nb6 {[%clk 0:01:38.8]} 22...
Rb8 {[%clk 0:01:07.1]} 23. b5 {[%clk 0:01:35.5]} 23... axb5 {[%clk 0:01:02.6]}
24. Qxb5 {[%clk 0:01:26.8]} 24... Bf8 {[%clk 0:01:00.3]} 25. Rc2 {[%clk
0:01:11.5]} 25... Rg7 {[%clk 0:00:32.4]} 26. Kh1 {[%clk 0:01:10.8]} 26... Nh4
{[%clk 0:00:29.3]} 27. Be1 {[%clk 0:00:56.7]} 27... Nxg2 {[%clk 0:00:25.9]} 28.
Kxg2 {[%clk 0:00:35.4]} 28... gxf3+ {[%clk 0:00:25.7]} 29. Kxf3 {[%clk
0:00:35.3]} 29... Ng4 {[%clk 0:00:25.7]} 30. Rh1 {[%clk 0:00:24.3]} 30... Ne3
{[%clk 0:00:23.5]} 31. Rc3 {[%clk 0:00:20.5]} 31... Qg5 {[%clk 0:00:22.8]} 32.
Bg3 {[%clk 0:00:07.9]} 32... fxg3 {[%clk 0:00:17.4]} 33. Rxe3 {[%clk 0:00:08]}
33... Rf7+ {[%clk 0:00:15.7]} 34. Kg2 {[%clk 0:00:06.9]} 34... Qxe3 {[%clk
0:00:15.2]} 35. Rf1 {[%clk 0:00:04.8]} 35... Rf2+ {[%clk 0:00:12.4]} 0-1

[Event "*** Titled Tuesday Blitz"]
[Site "Chess.com"]
[Date "2020.04.28"]
[Round "1"]
[White "aridannie"]
[Black "Koksik_13"]
[Result "0-1"]
[WhiteElo "2371"]
[BlackElo "2711"]
[TimeControl "180+1"]
[EndTime "10:07:30 PDT"]
[Termination "Koksik_13 won by resignation"]

1. e4 {[%clk 0:03:00.9]} 1... e6 {[%clk 0:02:59.5]} 2. d4 {[%clk 0:03:00.8]}
2... d5 {[%clk 0:03:00]} 3. Nd2 {[%clk 0:03:00.7]} 3... Nf6 {[%clk 0:02:59.1]}
4. e5 {[%clk 0:03:00.6]} 4... Nfd7 {[%clk 0:02:59.6]} 5. Bd3 {[%clk 0:03:00.1]}
5... c5 {[%clk 0:02:59.8]} 6. c3 {[%clk 0:03:00]} 6... Nc6 {[%clk 0:03:00.3]} 7.
Ne2 {[%clk 0:03:00.4]} 7... cxd4 {[%clk 0:03:00.8]} 8. cxd4 {[%clk 0:03:01.3]}
8... f6 {[%clk 0:03:01.3]} 9. exf6 {[%clk 0:03:01.6]} 9... Qxf6 {[%clk
0:03:02.2]} 10. Nf3 {[%clk 0:03:01.2]} 10... h6 {[%clk 0:03:02.7]} 11. O-O
{[%clk 0:03:00.1]} 11... Bd6 {[%clk 0:03:03.2]} 12. Ng3 {[%clk 0:02:54]} 12...
O-O {[%clk 0:03:03.3]} 13. a3 {[%clk 0:02:52.8]} 13... Rf7 {[%clk 0:03:03.5]}
14. Bc2 {[%clk 0:02:48]} 14... Nf8 {[%clk 0:03:03.3]} 15. Qd3 {[%clk 0:02:42.8]}
15... Bd7 {[%clk 0:03:03.2]} 16. b4 {[%clk 0:02:35.8]} 16... a6 {[%clk 0:03:01]}
17. Bb2 {[%clk 0:02:31.3]} 17... Be8 {[%clk 0:03:01]} 18. Rae1 {[%clk 0:02:24]}
18... Rc7 {[%clk 0:03:01.2]} 19. Bb1 {[%clk 0:02:20]} 19... Rac8 {[%clk
0:03:00.8]} 20. Ne5 {[%clk 0:02:17.6]} 20... Qh4 {[%clk 0:02:49.9]} 21. Re3
{[%clk 0:02:08.2]} 21... Bxe5 {[%clk 0:02:48.9]} 22. dxe5 {[%clk 0:02:06.6]}
22... Bg6 {[%clk 0:02:49.2]} 23. Qe2 {[%clk 0:02:00.1]} 23... Bxb1 {[%clk
0:02:48.5]} 24. Rxb1 {[%clk 0:02:01]} 24... Ng6 {[%clk 0:02:40.2]} 25. Re1
{[%clk 0:01:23]} 25... Nce7 {[%clk 0:02:33.3]} 26. Qd1 {[%clk 0:01:15.2]} 26...
Nf4 {[%clk 0:02:30.5]} 27. Ne2 {[%clk 0:01:10.3]} 27... Nf5 {[%clk 0:02:09.5]}
28. Nxf4 {[%clk 0:01:02.8]} 28... Qxf4 {[%clk 0:02:09.1]} 29. Rf3 {[%clk
0:00:59.9]} 29... Qg4 {[%clk 0:02:03.9]} 30. h3 {[%clk 0:00:57.5]} 30... Qg6
{[%clk 0:02:03.1]} 31. Kh1 {[%clk 0:00:50.8]} 31... Rc2 {[%clk 0:02:02.9]} 32.
Ba1 {[%clk 0:00:41.7]} 32... Ra2 {[%clk 0:01:52]} 33. Rc3 {[%clk 0:00:35.1]}
33... Rxc3 {[%clk 0:01:43]} 34. Bxc3 {[%clk 0:00:36]} 34... Rxf2 {[%clk
0:01:43.4]} 35. Qg4 {[%clk 0:00:20.1]} 35... Qxg4 {[%clk 0:01:43.6]} 36. hxg4
{[%clk 0:00:21]} 36... Ng3+ {[%clk 0:01:43.8]} 37. Kh2 {[%clk 0:00:19.9]} 37...
Ne4 {[%clk 0:01:42.9]} 38. Bd4 {[%clk 0:00:18.3]} 38... Rd2 {[%clk 0:01:42.4]}
39. Be3 {[%clk 0:00:16.8]} 39... Rd3 {[%clk 0:01:42]} 40. a4 {[%clk 0:00:17.1]}
40... Rb3 {[%clk 0:01:41.5]} 41. Bc5 {[%clk 0:00:15.7]} 41... a5 {[%clk
0:01:39.9]} 42. Rc1 {[%clk 0:00:08]} 42... axb4 {[%clk 0:01:40]} 43. Bd6 {[%clk
0:00:08.1]} 43... Rc3 {[%clk 0:01:38.7]} 44. Rb1 {[%clk 0:00:05.6]} 44... b3
{[%clk 0:01:38.9]} 45. Bb4 {[%clk 0:00:05.7]} 45... Rd3 {[%clk 0:01:06.1]} 46.
a5 {[%clk 0:00:05.6]} 46... d4 {[%clk 0:01:05]} 47. Ba3 {[%clk 0:00:04.8]} 47...
Nd2 {[%clk 0:00:59.2]} 48. Rb2 {[%clk 0:00:02.2]} 48... Nc4 {[%clk 0:00:58.9]}
0-1

[Event "*** Titled Tuesday Blitz"]
[Site "Chess.com"]
[Date "2020.04.28"]
[Round "1"]
[White "RubensCezila"]
[Black "Zhuu96"]
[Result "0-1"]
[WhiteElo "2462"]
[BlackElo "2964"]
[TimeControl "180+1"]
[EndTime "10:07:31 PDT"]
[Termination "Zhuu96 won by resignation"]

1. c4 {[%clk 0:02:59.8]} 1... Nf6 {[%clk 0:02:58.9]} 2. Nc3 {[%clk 0:02:59.8]}
2... e6 {[%clk 0:02:55.8]} 3. e3 {[%clk 0:02:55.7]} 3... c5 {[%clk 0:02:52.5]}
4. Nf3 {[%clk 0:02:55.1]} 4... b6 {[%clk 0:02:48.4]} 5. g3 {[%clk 0:02:52.9]}
5... Bb7 {[%clk 0:02:48]} 6. Bg2 {[%clk 0:02:52.9]} 6... Be7 {[%clk 0:02:46.1]}
7. O-O {[%clk 0:02:52.7]} 7... O-O {[%clk 0:02:45.9]} 8. d4 {[%clk 0:02:51.7]}
8... cxd4 {[%clk 0:02:44.2]} 9. exd4 {[%clk 0:02:51.3]} 9... d5 {[%clk
0:02:43.9]} 10. Ne5 {[%clk 0:02:51]} 10... Na6 {[%clk 0:02:30.7]} 11. Re1 {[%clk
0:02:45.7]} 11... Nc7 {[%clk 0:02:28.9]} 12. Bf4 {[%clk 0:02:43.6]} 12... Qc8
{[%clk 0:02:18.2]} 13. Rc1 {[%clk 0:02:07.1]} 13... dxc4 {[%clk 0:02:16.5]} 14.
Bxb7 {[%clk 0:02:08]} 14... Qxb7 {[%clk 0:02:16.3]} 15. Nxc4 {[%clk 0:01:57.1]}
15... Ncd5 {[%clk 0:02:16.4]} 16. Be5 {[%clk 0:01:48.2]} 16... Rac8 {[%clk
0:02:10.3]} 17. Nd6 {[%clk 0:01:33.1]} 17... Bxd6 {[%clk 0:02:10]} 18. Bxd6
{[%clk 0:01:34]} 18... Rfe8 {[%clk 0:02:05.3]} 19. Qf3 {[%clk 0:01:27]} 19...
Qc6 {[%clk 0:01:47.9]} 20. Be5 {[%clk 0:01:22.3]} 20... Nxc3 {[%clk 0:01:20.9]}
21. Qxc6 {[%clk 0:01:05.6]} 21... Rxc6 {[%clk 0:01:20]} 22. Rxc3 {[%clk
0:01:04.6]} 22... Rxc3 {[%clk 0:01:16.6]} 23. bxc3 {[%clk 0:01:05.5]} 23... Nd7
{[%clk 0:01:13.8]} 24. Bd6 {[%clk 0:00:56.7]} 24... Rc8 {[%clk 0:01:13.6]} 25.
d5 {[%clk 0:00:41.9]} 25... e5 {[%clk 0:01:02.8]} 26. f4 {[%clk 0:00:36]} 26...
exf4 {[%clk 0:00:58.2]} 27. gxf4 {[%clk 0:00:34]} 27... Nf6 {[%clk 0:00:58.4]}
28. Re7 {[%clk 0:00:25.7]} 28... Nxd5 {[%clk 0:00:58.4]} 29. Rxa7 {[%clk
0:00:25.8]} 29... Nxc3 {[%clk 0:00:58.7]} 30. Rb7 {[%clk 0:00:20.9]} 30... Nxa2
{[%clk 0:00:54.5]} 31. Rxb6 {[%clk 0:00:19.8]} 31... Nc3 {[%clk 0:00:54.5]} 32.
Rb8 {[%clk 0:00:19.2]} 32... Rxb8 {[%clk 0:00:54.2]} 33. Bxb8 {[%clk 0:00:20.1]}
33... f5 {[%clk 0:00:54.4]} 34. Kf2 {[%clk 0:00:20.4]} 34... Nd5 {[%clk
0:00:54]} 35. Be5 {[%clk 0:00:20.4]} 35... Kf7 {[%clk 0:00:53.3]} 36. h3 {[%clk
0:00:20.8]} 36... g6 {[%clk 0:00:53.4]} 37. Kf3 {[%clk 0:00:21.2]} 37... Ke6
{[%clk 0:00:53.6]} 38. Bd4 {[%clk 0:00:21.6]} 38... Nb4 {[%clk 0:00:53.7]} 39.
Be5 {[%clk 0:00:21.3]} 39... Kd5 {[%clk 0:00:54]} 40. Bg7 {[%clk 0:00:21]} 40...
Nd3 {[%clk 0:00:53.6]} 41. Kg3 {[%clk 0:00:20.9]} 41... Ke4 {[%clk 0:00:53.8]}
42. Bh6 {[%clk 0:00:20.6]} 42... Ke3 {[%clk 0:00:54.1]} 43. h4 {[%clk
0:00:20.7]} 43... Ke4 {[%clk 0:00:53.1]} 44. Bg5 {[%clk 0:00:21]} 44... h5
{[%clk 0:00:50.1]} 45. Bh6 {[%clk 0:00:20.7]} 45... Ke3 {[%clk 0:00:49.7]} 46.
Bg5 {[%clk 0:00:21]} 46... Nc5 {[%clk 0:00:49.7]} 47. Bh6 {[%clk 0:00:20.9]}
47... Ne4+ {[%clk 0:00:49.8]} 48. Kg2 {[%clk 0:00:21]} 48... Nc3 {[%clk
0:00:46.8]} 49. Kh3 {[%clk 0:00:16.3]} 49... Ne2 {[%clk 0:00:46.7]} 50. Kg2
{[%clk 0:00:15.8]} 50... Ke4 {[%clk 0:00:46.8]} 51. Bg5 {[%clk 0:00:14.3]} 51...
Nxf4+ {[%clk 0:00:46.9]} 52. Kg3 {[%clk 0:00:15.2]} 52... Nd5 {[%clk 0:00:45.9]}
53. Bd2 {[%clk 0:00:14.8]} 53... f4+ {[%clk 0:00:46.2]} 54. Kg2 {[%clk
0:00:15.2]} 54... Ne3+ {[%clk 0:00:46.6]} 0-1

[Event "*** Titled Tuesday Blitz"]
[Site "Chess.com"]
[Date "2020.04.28"]
[Round "1"]
[White "YoungUzbek"]
[Black "IlzeBerzina"]
[Result "1-0"]
[WhiteElo "2524"]
[BlackElo "2151"]
[TimeControl "180+1"]
[EndTime "10:07:31 PDT"]
[Termination "YoungUzbek won by resignation"]

1. e4 {[%clk 0:03:00.9]} 1... e5 {[%clk 0:02:58.9]} 2. Nf3 {[%clk 0:03:00.8]}
2... Nc6 {[%clk 0:02:58.1]} 3. Bb5 {[%clk 0:03:01.1]} 3... g6 {[%clk 0:02:57.2]}
4. d4 {[%clk 0:02:56.9]} 4... exd4 {[%clk 0:02:56.8]} 5. Bg5 {[%clk 0:02:57]}
5... Be7 {[%clk 0:02:55.2]} 6. Bxe7 {[%clk 0:02:51.5]} 6... Qxe7 {[%clk
0:02:53.4]} 7. Bxc6 {[%clk 0:02:51.6]} 7... dxc6 {[%clk 0:02:49]} 8. Qxd4 {[%clk
0:02:51.4]} 8... Nf6 {[%clk 0:02:40.1]} 9. Nc3 {[%clk 0:02:50.9]} 9... Bg4
{[%clk 0:02:29.3]} 10. O-O-O {[%clk 0:02:50.5]} 10... Bxf3 {[%clk 0:02:20.6]}
11. gxf3 {[%clk 0:02:51.4]} 11... O-O {[%clk 0:02:19.9]} 12. Qe3 {[%clk
0:02:37.7]} 12... Rfd8 {[%clk 0:02:08.8]} 13. f4 {[%clk 0:02:28.7]} 13... a5
{[%clk 0:01:56.7]} 14. f5 {[%clk 0:02:21.6]} 14... Rxd1+ {[%clk 0:01:49.8]} 15.
Rxd1 {[%clk 0:02:21]} 15... Rd8 {[%clk 0:01:49.6]} 16. Rxd8+ {[%clk 0:02:18]}
16... Qxd8 {[%clk 0:01:49.2]} 17. fxg6 {[%clk 0:01:47]} 17... hxg6 {[%clk
0:01:46.3]} 18. h3 {[%clk 0:01:17.6]} 18... b5 {[%clk 0:01:40.8]} 19. Ne2 {[%clk
0:01:14.9]} 19... Qe7 {[%clk 0:01:32.8]} 20. f4 {[%clk 0:01:09.1]} 20... Nd5
{[%clk 0:01:24.9]} 21. Qd4 {[%clk 0:00:57.8]} 21... Nf6 {[%clk 0:01:12.9]} 22.
e5 {[%clk 0:00:55]} 22... Nd5 {[%clk 0:01:10.4]} 23. Qf2 {[%clk 0:00:49.9]}
23... Qb4 {[%clk 0:01:08.4]} 24. f5 {[%clk 0:00:44.1]} 24... Qe4 {[%clk
0:01:04.3]} 25. fxg6 {[%clk 0:00:41.5]} 25... fxg6 {[%clk 0:01:03.6]} 26. Nd4
{[%clk 0:00:35.6]} 26... Qxe5 {[%clk 0:00:55.3]} 27. Nxc6 {[%clk 0:00:22.6]}
27... Qe4 {[%clk 0:00:51.9]} 28. Kd2 {[%clk 0:00:18.9]} 28... Nb6 {[%clk
0:00:40.8]} 29. Nd4 {[%clk 0:00:09.3]} 29... Nc4+ {[%clk 0:00:39.7]} 30. Kc3
{[%clk 0:00:09.9]} 30... c5 {[%clk 0:00:34.9]} 31. Nxb5 {[%clk 0:00:09.7]} 31...
Ne5 {[%clk 0:00:27.4]} 32. Qxc5 {[%clk 0:00:08.6]} 32... Qf3+ {[%clk 0:00:23.4]}
33. Kd4 {[%clk 0:00:08.6]} 33... Qf2+ {[%clk 0:00:20.9]} 34. Kd5 {[%clk
0:00:08.6]} 34... Qd2+ {[%clk 0:00:20.6]} 35. Kxe5 {[%clk 0:00:08.7]} 35... Qg5+
{[%clk 0:00:20.4]} 36. Kd6 {[%clk 0:00:09.1]} 36... Qd8+ {[%clk 0:00:19.5]} 37.
Kc6 {[%clk 0:00:09]} 37... Qc8+ {[%clk 0:00:19.3]} 38. Nc7 {[%clk 0:00:09.6]}
38... Qxh3 {[%clk 0:00:16.6]} 39. Qd5+ {[%clk 0:00:10.5]} 39... Kg7 {[%clk
0:00:15.9]} 40. Qd7+ {[%clk 0:00:11.1]} 40... Qxd7+ {[%clk 0:00:14.1]} 41. Kxd7
{[%clk 0:00:12]} 41... g5 {[%clk 0:00:14.3]} 42. Ne6+ {[%clk 0:00:12.9]} 42...
Kf6 {[%clk 0:00:14.1]} 43. Nxg5 {[%clk 0:00:13.8]} 43... Kxg5 {[%clk 0:00:14.4]}
44. c4 {[%clk 0:00:14.7]} 44... Kf4 {[%clk 0:00:14.3]} 45. c5 {[%clk 0:00:15.6]}
45... Ke5 {[%clk 0:00:14.5]} 46. c6 {[%clk 0:00:16.5]} 46... Kd4 {[%clk
0:00:14.6]} 47. c7 {[%clk 0:00:17.4]} 47... Kd3 {[%clk 0:00:14.4]} 48. c8=Q
{[%clk 0:00:18.3]} 1-0